Cogmind - Beta 13 X2 @@@ ROGUE MODE // 2024.01.05 @ 20:38:42 Player: Minty Result: Destroyed self with Mini Grenade Launcher Performance ------------- Evolutions (1) 500 Regions Visited (5) 1000 Robots Destroyed (27) 135 Value Destroyed (622) 622 Prototype IDs (23) 460 Alien Tech Used (0) 0 Bonus (300) 300 TOTAL SCORE: 3017 Bonus ------- Aligned with FarCom 300 Cogmind --------- Core Integrity 0/400 Matter 31/300 Energy 100/100 System Corruption 10% Temperature Cool (0) Movement Core (100) Ox1 Location -8/Mines Parts ------- > --- POWER (1) -------- (None) > --- PROPULSION (2) --- (None) > --- UTILITY (3) ------ Small Storage Unit > --- WEAPON (3) ------- Mini Grenade Launcher > --- INVENTORY (8) ---- Light Nuclear Core Improved Heat Sink Modified TNC 0b10 Alert Chip Latent Energy Streamer Mini Grenade Launcher Mining Laser Peak State ------------ > --- POWER ------------ Light Nuclear Core > --- PROPULSION ------- Aluminum Leg Aluminum Leg > --- UTILITY ---------- Improved Heat Sink Small Storage Unit Weapon Shielding > --- WEAPON ----------- EM Pulse Gun EM Pulse Gun EMP Blaster > --- INVENTORY -------- Ion Engine Hover Unit Flight Unit Flight Unit Mini Grenade Launcher Mini Grenade Launcher Mini Grenade Launcher Mining Laser [Rating: 15] Favorites ----------- Power Ion Engine Engine Ion Engine Power Core Light Nuclear Core Propulsion Aluminum Leg Leg Aluminum Leg Flight Unit Flight Unit Utility Small Storage Unit Device Improved Heat Sink Storage Small Storage Unit Protection Weapon Shielding Weapon Small Laser Energy Gun Small Laser Energy Cannon Latent Energy Streamer Ballistic Gun Assault Rifle Launcher Mini Grenade Launcher Build | -11 -10 -9 -9 -9 -8 ------- Run | Yrd Mat Mat Min Exi Min Slots Evolved 2 | . . 2 . . . Power . | . . . . . . Propulsion . | . . . . . . Utility 1 | . . 1 . . . Weapon 1 | . . 1 . . . Parts Attached 27 | . 11 4 10 . 2 Power 2 | . 1 . 1 . . Engine 1 | . . . 1 . . Core 1 | . 1 . . . . Reactor . | . . . . . . Propulsion 11 | . 4 2 5 . . Treads . | . . . . . . Leg 6 | . 2 2 2 . . Wheel . | . . . . . . Hover . | . . . . . . Flight 5 | . 2 . 3 . . Utility 3 | . 2 1 . . . Device 1 | . . 1 . . . Storage . | . . . . . . Processor . | . . . . . . Hackware . | . . . . . . Protection 2 | . 2 . . . . Artifact . | . . . . . . Weapon 11 | . 4 1 4 . 2 Energy Gun 2 | . 2 . . . . Energy Cannon 1 | . . . . . 1 Ballistic Gun 2 | . 2 . . . . Ballistic Cannon . | . . . . . . Launcher 6 | . . 1 4 . 1 Special Weapon . | . . . . . . Impact Weapon . | . . . . . . Slashing Weapon . | . . . . . . Piercing Weapon . | . . . . . . Special Melee Weapon . | . . . . . . Unidentified Prototypes . | . . . . . . Corrupted Parts 2 | . . 2 . . . System Corruption 10 | . . 10 . . . Parts Lost 11 | . . 5 3 . 3 Power 1 | . . . . . 1 Propulsion 7 | . . 2 3 . 2 Utility 1 | . . 1 . . . Weapon 2 | . . 2 . . . Highest Loss Streak 5 | . . 5 2 . 2 To Critical Strikes . | . . . . . . Average Slot Usage (%) 70 | . 98 92 68 44 24 Engine 7 | . 9 . 8 11 1 Core 3 | . 4 11 2 . . Leg 18 | . 27 21 6 22 11 Flight 4 | . . . 15 . . Device 1 | . . 11 2 . . Storage 11 | . 14 11 11 11 11 Protection 4 | . 12 9 . . . Energy Gun 10 | . 25 19 . . . Launcher 6 | . . 9 22 . 1 Naked Turns . | . . . . . . Heaviest Build 20 | 12 15 20 16 10 15 Greatest Support 20 | 20 20 20 20 20 10 Greatest Overweight (x) 3 | . 3 1 2 . 1 Average Overweight (x) . | . . . . . . Largest Inventory Capacity 8 | . 8 8 8 8 8 Average Capacity 8 | . 8 8 8 8 8 Most Carried 8 | . 8 8 8 8 8 Average Carried 7 | . 6 7 6 7 7 Final Capacity 8 | 8 8 8 8 8 8 Final Carried 8 | 6 8 7 8 8 7 Class Distribution -------------------- 71% | Mutant 11% | Gunner 9% | Tank 8% | Scavenger-Mutant Dominant Class ---------------- Mutant | -10/Materials Tank | -9/Materials Gunner | -9/Mines Mutant | -9/Exiles Mutant | -8/Mines Resources | -11 -10 -9 -9 -9 -8 ----------- Run | Yrd Mat Mat Min Exi Min Matter Collected 336 | 200 20 59 25 . 32 Remotely . | . . . . . . Salvage Created 606 | . 303 248 23 . 32 Parts 54 | . 22 18 11 . 3 Haulers Intercepted . | . . . . . . Recyclers Shooed . | . . . . . . Parts Field Recycled . | . . . . . . Retrieved Matter . | . . . . . . Parts Self-Destructed . | . . . . . . Prevented . | . . . . . . Kills | -11 -10 -9 -9 -9 -8 ------- Run | Yrd Mat Mat Min Exi Min Combat Hostiles Destroyed 23 | . 8 5 9 . 1 Guns 9 | . 8 1 . . . AOE 14 | . . 4 9 . 1 Classes Destroyed 5 | . 4 1 . . . Worker 1 | . 1 . . . . Operator 2 | . 1 1 . . . Watcher 1 | . . 1 . . . Swarmer 12 | . 3 . 9 . . Grunt 11 | . 5 5 . . 1 Best Kill Streak 7 | . 4 7 4 . 1 Combat Bots Only 5 | . 3 5 4 . 1 Max Kills in Single Turn 4 | . 1 3 4 . 1 Gunslinging . | . . . . . . Exploded 4 | . . 2 4 . 1 Melee . | . . . . . . Uniques/NPCs Destroyed . | . . . . . . Combat | -11 -10 -9 -9 -9 -8 -------- Run | Yrd Mat Mat Min Exi Min Hostile Shots Fired 139 | . 34 51 13 . 41 Missed 40 | . 8 18 2 . 12 Damage Taken 1516 | . 322 444 215 . 535 Core 533 | . 110 95 17 . 311 Absorbed by Shields . | . . . . . . Redirected to Shielding 51 | . 24 27 . . . Core Remaining (%) 78 | 100 56 . . . . Volleys Fired 43 | . 25 9 7 . 2 Largest 3 | . 2 3 3 . 1 Hottest 113 | . 80 113 93 . 30 Shots Fired 88 | . 50 22 14 . 2 Gun 66 | . 50 16 . . . Cannon . | . . . . . . Launcher 22 | . . 6 14 . 2 Special . | . . . . . . Kinetic . | . . . . . . Thermal 44 | . 44 . . . . Explosive 16 | . . . 14 . 2 Electromagnetic 28 | . 6 22 . . . Robot Hit Streak 5 | . 5 5 4 . 2 Robot Miss Streak 3 | . 2 3 3 . . Penetration Max . | . . . . . . Secondary Targets 1 | . 1 . . . . Max Gunslinging Chain 1 | . 1 . . . . Shots Hit Robots 43 | . 24 12 5 . 2 Core Hits 44 | . 18 10 10 . 6 Critical Kills . | . . . . . . Critical Parts Destroyed . | . . . . . . Critical Strikes . | . . . . . . Melee Attacks . | . . . . . . Impact . | . . . . . . Slashing . | . . . . . . Piercing . | . . . . . . Sneak Attacks . | . . . . . . Combat Hostiles . | . . . . . . Follow-up Attacks . | . . . . . . Damage Inflicted 1673 | . 326 393 727 . 227 Guns 444 | . 324 120 . . . Cannons . | . . . . . . Explosions 1213 | . . 270 727 . 216 Melee . | . . . . . . Ramming 16 | . 2 3 . . 11 Kinetic . | . . . . . . Thermal 316 | . 291 25 . . . Explosive 943 | . . . 727 . 216 Electromagnetic 398 | . 33 365 . . . Impact . | . . . . . . Slashing . | . . . . . . Piercing . | . . . . . . Highest Corruption 10 | . . 10 10 10 10 Average Corruption 9 | . . 8 10 10 10 Corruption Purged . | . . . . . . Corruption Blocked . | . . . . . . Effects 22 | . . 1 10 8 3 Message Errors 2 | . . 1 . 1 . Matter Fused 6 | . . . 4 2 . Heat Flow Errors 1 | . . . 1 . . Energy Discharges 6 | . . . 3 1 2 Data Loss (minor) 5 | . . . 1 4 . Data Loss (major) 1 | . . . . . 1 Weapon Failures 1 | . . . 1 . . Overload Shots . | . . . . . . Overflow Damage 96 | . . . 87 . 9 Projectiles . | . . . . . . Explosions 96 | . . . 87 . 9 Melee . | . . . . . . Knockbacks . | . . . . . . Impact . | . . . . . . Kinetic . | . . . . . . Secondary . | . . . . . . Self-Inflicted Damage 230 | . . . 133 . 97 Shots 7 | . . . 5 . 2 Rammed . | . . . . . . Targets Rammed 11 | . 1 2 . . 8 Kicked 11 | . 1 2 . . 8 Crushed . | . . . . . . Highest Temperature 267 | . 267 36 256 . . Average Temperature 88 | . 103 14 88 . . Received Heat Transfer 450 | . 135 180 . . 135 Siege Activations . | . . . . . . Robots Corrupted . | . . . . . . Combat Hostiles . | . . . . . . Parts Fried . | . . . . . . Impact Corruptions . | . . . . . . Robots Melted . | . . . . . . Combat Hostiles . | . . . . . . Parts Melted 1 | . 1 . . . . Heat Transferred 700 | . 650 50 . . . Parts Sabotaged . | . . . . . . Parts Stolen . | . . . . . . Parts Stripped . | . . . . . . Power Chain Reactions 1 | . . 1 . . . Missiles Intercepted . | . . . . . . Alert | -11 -10 -9 -9 -9 -8 ------- Run | Yrd Mat Mat Min Exi Min Peak Influence 379 | . 215 204 379 . 36 Initial 90 | . . 90 67 . . Average 125 | . 78 113 222 . 5 Maximum Alert Level 1 | . 1 1 1 . . Low Security (%) 80 | . 95 98 49 . 100 Level 1 19 | . 4 1 50 . . Level 2 . | . . . . . . Level 3 . | . . . . . . Level 4 . | . . . . . . Level 5 . | . . . . . . High Security . | . . . . . . Max Security . | . . . . . . Squads Dispatched 4 | . 2 1 . . 1 Investigation 3 | . 1 1 . . 1 Extermination . | . . . . . . Reinforcement 1 | . 1 . . . . Assault . | . . . . . . Garrison . | . . . . . . Intercept . | . . . . . . Searches Triggered . | . . . . . . Construction Impeded . | . . . . . . Haulers Reinforced . | . . . . . . Active Scanning Responses . | . . . . . . Cargo Convoy Interrupts . | . . . . . . Stealth | -11 -10 -9 -9 -9 -8 --------- Run | Yrd Mat Mat Min Exi Min Distress Signals 1 | . . 1 . . . Communications Jammed . | . . . . . . Distress Signals . | . . . . . . Times Spotted 36 | . 10 11 10 . 5 Peak Tracking Total 7 | . 3 7 3 . 4 Tactical Retreats 2 | . . . 1 . 1 Traps | -11 -10 -9 -9 -9 -8 ------- Run | Yrd Mat Mat Min Exi Min Traps Triggered 1 | . 1 . . . . Indirectly . | . . . . . . Trap Hack Attempts . | . . . . . . Triggered . | . . . . . . Disarmed . | . . . . . . Reprogrammed . | . . . . . . Reused . | . . . . . . Traps Extracted . | . . . . . . Installed . | . . . . . . Triggered . | . . . . . . Machines | -11 -10 -9 -9 -9 -8 ---------- Run | Yrd Mat Mat Min Exi Min Machines Disabled 4 | . . . 4 . . Max in Single Turn 3 | . . . 3 . . Machines Repaired . | . . . . . . Machines Dismantled . | . . . . . . Machines Sabotaged . | . . . . . . Overloaded Fab Kills . | . . . . . . Hacking | -11 -10 -9 -9 -9 -8 --------- Run | Yrd Mat Mat Min Exi Min Machines Accessed 6 | . 2 2 . 1 1 Terminals 4 | . 2 1 . . 1 Fabricators . | . . . . . . Repair Stations . | . . . . . . Recycling Units 1 | . . 1 . . . Scanalyzers . | . . . . . . Garrison Access . | . . . . . . Total Hacks 9 | . 4 2 . 1 2 Successful 4 | . 1 2 . 1 . Failed 5 | . 3 . . . 2 Catastrophic 3 | . 2 . . . 1 Database Lockouts . | . . . . . . Manual 5 | . 2 . . 1 2 Terminals 7 | . 4 1 . . 2 Fabricators . | . . . . . . Repair Stations . | . . . . . . Recycling Units 1 | . . 1 . . . Scanalyzers . | . . . . . . Garrison Access . | . . . . . . Terminal Hacks 2 | . . 1 . 1 . Zone Layout 1 | . . 1 . . . Derelict Proto ID Bank 1 | . . . . 1 . Fabricator Hacks . | . . . . . . Repair Station Hacks . | . . . . . . Recycling Unit Hacks 1 | . . 1 . . . Report Inventory 1 | . . 1 . . . Scanalyzer . | . . . . . . Garrison Access Hacks . | . . . . . . Unauthorized Hacks 1 | . 1 . . . . Terminals 1 | . 1 . . . . Botnet 1 | . 1 . . . . Fabricators . | . . . . . . Repair Stations . | . . . . . . Recycling Units . | . . . . . . Scanalyzers . | . . . . . . Garrison Access . | . . . . . . Data Cores Recovered 1 | . . 1 . . . Used 1 | . . 1 . . . Hacking Detections 4 | . 2 1 . . 1 Full Trace Events 2 | . 1 . . . 1 Feedback Events . | . . . . . . Feedback Blocked . | . . . . . . Robot Schematics Acquired . | . . . . . . Robots Built . | . . . . . . Authchips . | . . . . . . Time . | . . . . . . Total Robot Build Rating . | . . . . . . Part Schematics Acquired . | . . . . . . Parts Built . | . . . . . . Authchips . | . . . . . . Time . | . . . . . . Total Part Build Rating . | . . . . . . Parts Repaired . | . . . . . . Time . | . . . . . . Parts Recycled . | . . . . . . Recycled Matter . | . . . . . . Retrieved Matter . | . . . . . . Retrieved Components . | . . . . . . Parts Scanalyzed . | . . . . . . Part Schematics Acquired . | . . . . . . Parts Damaged . | . . . . . . Bothacking | -11 -10 -9 -9 -9 -8 ------------ Run | Yrd Mat Mat Min Exi Min Used RIF Installer . | . . . . . . Robots Hacked . | . . . . . . Non-combat . | . . . . . . Combat . | . . . . . . Robot Hacks Applied . | . . . . . . Relay Couplers Released . | . . . . . . Fabnet Peak Effective % . | . . . . . . Robots Rewired . | . . . . . . Allies Hacked . | . . . . . . Hacks Repelled . | . . . . . . Allies | -11 -10 -9 -9 -9 -8 -------- Run | Yrd Mat Mat Min Exi Min Total Allies . | . . . . . . Largest Group . | . . . . . . Highest-Rated Group . | . . . . . . Highest-Rated Ally . | . . . . . . Total Orders . | . . . . . . Ally Attacks . | . . . . . . Total Damage . | . . . . . . Kills . | . . . . . . Allies Corrupted . | . . . . . . Allies Melted . | . . . . . . Intel | -11 -10 -9 -9 -9 -8 ------- Run | Yrd Mat Mat Min Exi Min Robot Analysis Total . | . . . . . . Derelict Logs Recovered 1 | . . . 1 . . Drone Launches . | . . . . . . Drone Recoveries . | . . . . . . Exploration | -11 -10 -9 -9 -9 -8 ------------- Run | Yrd Mat Mat Min Exi Min Turns Passed 1100 | . 329 137 281 269 84 Spaces Moved 759 | 1 188 80 204 221 65 Core 48 | . . . . . 48 Treads . | . . . . . . Legs 568 | 1 185 80 64 221 17 Wheels . | . . . . . . Hover . | . . . . . . Flight 143 | . 3 . 140 . . Fastest Speed 100 | 120 117 120 117 120 100 Average Speed 119 | 120 120 122 120 120 106 Slowest Speed 280 | 120 280 190 200 120 190 Overloaded Moves . | . . . . . . Propulsion Burnouts . | . . . . . . Robots Hopped . | . . . . . . Cave-ins Triggered . | . . . . . . Exploration Rate (%) 27 | 2 33 11 39 61 18 Regions Visited 5 Branch Regions 3 Pre-discovered Areas . | . . . . . . Known Exits Taken . | . . . . . . Unknown Exits Taken 5 | 1 1 1 1 1 . Scrap Searched 1 | . . . 1 . . Spaces Dug . | . . . . . . Terrain Destroyed 136 | . . 2 123 . 11 Melee . | . . . . . . Projectile . | . . . . . . AOE 136 | . . 2 123 . 11 Terrain Rammed . | . . . . . . Walls Destroyed . | . . . . . . Machines Disabled . | . . . . . . Actions | -11 -10 -9 -9 -9 -8 --------- Run | Yrd Mat Mat Min Exi Min Total 872 | . 242 100 226 226 78 Wait . | . . . . . . Move 754 | . 187 79 203 220 65 Hop . | . . . . . . Pick Up 11 | . 4 3 1 3 . Fast Attach 12 | . 8 3 1 . . Attach 8 | . . 1 5 . 2 Detach 9 | . 4 . 4 . 1 Swap 7 | . 3 . 4 . . Drop 17 | . 10 3 1 3 . Fire 43 | . 25 9 7 . 2 Melee . | . . . . . . Ram . | . . . . . . Kick 11 | . 1 2 . . 8 Crush . | . . . . . . Escape Stasis . | . . . . . . Rewire . | . . . . . . Trap . | . . . . . . Miscellaneous . | . . . . . . Route ------- -11/Scrapyard -10/Materials -9/Materials -9/Mines (discovered 3 exits: [*Mat x2] / *Exi) -9/Exiles (discovered 2 exits: *Min x2) -8/Mines History --------- Turn | Location | Event 1 | -11/Scrapyard | Discovered new exit (range 0) 1 | -11/Scrapyard | Entered Materials 303 | -10/Materials | Discovered new exit (range 16) 321 | -10/Materials | Build established: Mutant 330 | -10/Materials | Entered another Materials area 330 | -9/Materials | Evolved 2 slots: Utility x1, Weapon x1 443 | -9/Materials | Discovered new exit (range 10) 461 | -9/Materials | System corruption reached 10% 467 | -9/Materials | Entered Mines 487 | -9/Mines | Lost 5 parts (2n1u2w) 563 | -9/Mines | Discovered new exit (range 8) 600 | -9/Mines | Discovered new exit (range 5) 741 | -9/Mines | Deemed a non-threat by the Exiles lab entrance 742 | -9/Mines | Discovered new exit (range 5) 748 | -9/Mines | Entered Exiles 768 | -9/Exiles | Discovered new exit (range 15) 781 | -9/Exiles | Met 8R-AWN 799 | -9/Exiles | Met EX-HEX 836 | -9/Exiles | Met EX-BIN 853 | -9/Exiles | Aligned with FarCom system 854 | -9/Exiles | Given EX-Vault access code 883 | -9/Exiles | Opened EX-Vault 893 | -9/Exiles | Found Latent Energy Streamer 895 | -9/Exiles | Found 0b10 Alert Chip 901 | -9/Exiles | Found Modified TNC 928 | -9/Exiles | Warned to stay clear of 0b10 Research branches 964 | -9/Exiles | Met EX-DEC 1004 | -9/Exiles | Discovered new exit (range 14) 1017 | -9/Exiles | Stole three prototypes: Modified TNC, 0b10 Alert Chip, Latent Energy Streamer 1017 | -9/Exiles | Entered Mines 1043 | -8/Mines | Core integrity fell below 50% 1098 | -8/Mines | Core integrity fell below 20% 1101 | -8/Mines | Destroyed self with Mini Grenade Launcher Last Messages --------------- 01023_ Ion Engine destroyed. 01023_ Aluminum Leg destroyed. 01031_ System corrupted: Substantial component data lost. 01039_ Slug penetrates Wall. 01062_ System corrupted: Energy discharge (-28). 01069_ K-01 Serf collects debris. 01076_ Connecting with Terminal... 01076_ Current location identified: Mines 01076_ ALERT: Suspicious activity at Terminal M002. Dispatching Investigation squad. 01085_ System corrupted: Energy discharge (-33). 01086_ Kicked G-47 Trooper. 01092_ Kicked G-47 Trooper out of the way. 01093_ Kicked G-50 Soldier. 01097_ Aluminum Leg destroyed. 01097_ Destroyed Aluminum Leg. 01097_ G-47 Trooper destroyed. 01097_ Penetrated by Slug. 01097_ K-01 Serf collects debris. 01100_ Acquired 32 matter. Map ----- +----------------------------------------------------+ | ?????????????????????????????????????????????????? | | ?????????????????????????????????????????????????? | | ##???????????????????????????????????????????????? | | #???????????????????????????????????????????????? | | #???????????????????????????????????????????????? | | #???????????????????????????????????????????????? | | #???????????????????????????????????????????????? | | #???????????????????????????????????????????????? | | #??????#????????????????????????????????????????? | | ##### ?????????????????????????????????????????? | | ????###??????????????????????????????????? | | ???????# ??????????????????????????????????? | | ###????????# ??????????????????????????????????? | | ######???# #??????????????????????????????????? | | #???# #??????????????????????????????????? | | #?# #???# #??????????????????????????????????? | | ### #???# #########??????????????????????????? | | ## ##### #??????????????????????????? | | # ####### #??????????????????????????? | | ## #?????# #???????###????????????????? | | ?##############?##??# #????####T########?????????? | | ???????????????## ## #????# #?????????? | | ???????????????# ###??# #?????????? | | ???????????????# ### """ """ #?????????? | | ??????????????# h* # """ """ #?????????? | | ??????????????# ##### @= """ """ #?????????? | | ??????????????## #????# !g #?????????? | | ???????????????###?????# g #?????????? | | ???????????????????????#################?????????? | | ?????????????????????????????????????????????????? | | | | | | | | | | | | | | | | | | | | | | | | | | | | | | | | | | | | | | | | | +----------------------------------------------------+ Best States ------------- Heat Dissipation 42 Energy Generation 14 Energy Capacity 250 Matter Stores 300 Matter Capacity 300 Sight Range 16 Terrain Scan Density 10 Weapon Shielding 33 Evasion (%) 55 Item Schematics ----------------- None Robot Schematics ------------------ None Fabricated ------------ Nothing Alien Tech Used ----------------- None Achievements -------------- None Challenges ------------ None Game ------ Seed PiercingCloakProjector Manual? 0 Play Time 00:07:27 Cumulative 568.8 hours Start 2024.01.05 @ 20:31:46 End 2024.01.05 @ 20:38:42 Sessions 1 Manual Loads 0 Difficulty Rogue Special Mode None Game No. 462 Rogue 189 Adventurer 123 Explorer 150 Win Type - Total 25 Types 19/0/4/1/0/0/0/1/0 Lore% 77 Gallery% 90 Achievement% 75 Wizard Run 0 Options --------- ASCII 0 Keyboard 1 Movement Numpad Keybinds 0 Fullscreen 2 Font 18/X11Bold Map View 76x50 Zoom Use 0% Tactical HUD 1 Map Filters NONE Filters NONE Steam 1 RUN: 71fd61d6-aa0d-4f83-8a88-1ebd739d80c8